bitfinex-derivatives/quotes_SOLF0:USTF0_20241215
["timestamp","ask_amount","ask_price","bid_price","bid_amount"]
[1734261608293,2.04,218.29,218.13,21.02202357]
[1734261608487,2.04,218.29,218.14,15.50247032]
[1734261608693,2.04,218.29,218.15,11.26256026]
[1734261608887,2.04,218.29,218.16,7.81240512]
[1734261609094,2.04,218.29,218.12,10.1221201]
[1734261609293,2.04,218.29,218.13,21.01813257]
[1734261609493,2.04,218.29,218.14,15.49918836]
[1734261609798,2.04,218.29,218.15,11.26005302]
[1734261610092,2.04,218.29,218.16,11.25962238]
[1734261610294,2.04,218.28,218.17,7.81098038]
[1734261610595,2.04,218.28,218.13,5.16205202]
[1734261610797,2.04,218.28,218.14,21.01526173]
[1734261611096,2.04,218.28,218.15,15.49736246]
[1734261611296,2.04,218.28,218.16,11.25905491]
[1734261611497,2.04,218.28,218.17,7.81036787]
[1734261611704,2.04,218.28,218.13,5.16205202]
[1734261611898,2.04,218.28,218.14,21.01506728]
[1734261612199,2.04,218.28,218.15,21.01499393]
[1734261612393,2.04,218.28,218.16,15.49713609]
[1734261612593,2.04,218.28,218.17,11.25889703]
[1734261612788,2.04,218.28,218.13,5.16205202]
[1734261613098,2.04,218.28,218.14,11.26012598]
[1734261613398,2.04,218.28,218.15,7.81111852]
[1734261613598,2.04,218.28,218.12,4.6027]
[1734261613794,2.04,218.28,218.13,11.2586529]
[1734261613996,2.04,218.28,218.14,7.81007454]
[1734261614196,2.04,218.28,218.15,7.81031031]
[1734261614393,2.04,218.28,218.12,4.6027]
[1734261614597,2.04,218.28,218.13,11.25707296]
[1734261614797,2.04,218.28,218.14,7.80897982]
[1734261615005,2.04,218.28,218.15,5.16054495]
[1734261615301,2.04,218.28,218.12,4.6027]
[1734261615493,2.04,218.28,218.13,7.80751423]
[1734261615699,2.04,218.28,218.14,5.15954515]
[1734261615902,2.04,218.28,218.12,4.6027]
[1734261616102,2.04,218.28,218.13,7.80751094]
[1734261616304,2.04,218.28,218.12,4.6027]
[1734261628912,5.43055395,218.19,218.12,4.6027]
[1734261629104,2.02,218.18,218.12,4.6027]
[1734261631415,67.58282178,218.24,218.12,4.6027]
[1734261631609,2.02,218.23,218.12,4.6027]
[1734261631814,2.02,218.22,218.12,4.6027]
[1734261644925,67.58282178,218.24,218.12,4.6027]
[1734261645320,67.58282178,218.24,218.13,11.24294289]
[1734261645523,2.02,218.23,218.14,7.80437606]
[1734261645723,2.02,218.23,218.15,5.15731696]
[1734261646023,2.02,218.23,218.12,4.6027]
[1734261646220,2.02,218.23,218.13,10.31992095]
[1734261646428,2.02,218.23,218.14,15.47715572]
[1734261646621,2.02,218.23,218.15,11.24225799]
[1734261646817,2.02,218.23,218.16,7.80393298]
[1734261647019,2.02,218.24,218.17,7.80461888]
[1734261647222,2.02,218.24,218.15,2.02]
[1734261647421,2.02,218.24,218.16,11.24873059]
[1734261647619,2.02,218.24,218.17,7.80840045]
[1734261647921,2.02,218.24,218.15,2.02]
[1734261648118,2.02,218.24,218.16,11.24874908]
[1734261648325,2.02,218.24,218.17,7.80841479]
[1734261648525,2.02,218.24,218.18,5.16022307]
[1734261648726,2.02,218.24,218.15,2.02]
[1734261648926,2.02,218.24,218.16,11.2524859]
[1734261649229,2.02,218.24,218.17,11.25371457]
[1734261649424,2.02,218.24,218.18,7.81100819]
[1734261649625,2.02,218.24,218.15,2.02]
[1734261649829,2.02,218.24,218.16,15.49669891]
[1734261650028,2.02,218.24,218.17,11.2565047]
[1734261650224,2.02,218.24,218.18,7.81379832]
[1734261650421,2.02,218.24,218.15,2.02]
[1734261650630,2.02,218.24,218.16,21.0076534]
[1734261650930,5.603908,218.3,218.15,2.02]
[1734261650931,2.02,218.27,218.17,15.49868571]
[1734261651125,2.02,218.27,218.18,11.25794411]
[1734261651327,2.02,218.27,218.19,7.81479779]
[1734261651530,2.02,218.27,218.2,10.71149779]
[1734261651730,2.02,218.27,218.2,2.8967]
[1734261652131,2.02,218.27,218.21,1.5275]
[1734261653634,2.02,218.28,218.21,1.5275]
[1734261655442,2.02,218.28,218.2,2.8967]
[1734261674840,5.57279834,218.31,218.2,2.8967]
[1734261675044,2.02,218.3,218.21,11.24689544]
[1734261675245,2.02,218.3,218.22,11.24689544]
[1734261675545,2.02,218.3,218.23,5.15961624]
[1734261675739,2.02,218.3,218.2,2.8967]
[1734261675938,2.02,218.3,218.21,15.48058112]
[1734261676245,2.02,218.3,218.22,11.2448945]
[1734261676438,2.02,218.3,218.23,7.8057951]
[1734261676643,2.02,218.3,218.2,2.8967]
[1734261676940,2.02,218.3,218.21,15.47773655]
[1734261677140,2.02,218.3,218.22,7.80438835]
[1734261677343,2.02,218.3,218.2,2.8967]
[1734261677544,2.02,218.3,218.21,11.24186999]
[1734261677842,2.02,218.3,218.22,7.8036928]
[1734261678149,2.02,218.3,218.2,2.8967]
[1734261678446,2.02,218.3,218.21,11.24074079]
[1734261678637,2.02,218.3,218.22,7.80292793]
[1734261678839,2.02,218.3,218.23,7.80292793]
[1734261679044,2.02,218.3,218.2,2.8967]
[1734261679346,2.02,218.3,218.21,15.47428382]
[1734261679648,2.02,218.3,218.22,7.80264728]
[1734261679837,2.02,218.3,218.2,2.8967]
[1734261680038,2.02,218.3,218.21,8.59397983]
[1734261680245,2.02,218.3,218.22,7.80241525]
[1734261680444,2.02,218.3,218.2,2.8967]
[1734261680644,2.02,218.3,218.21,11.2399637]
[1734261680843,2.02,218.3,218.22,7.8023716]
[1734261681040,2.02,218.3,218.2,2.8967]
[1734261681247,2.02,218.3,218.21,11.23996926]
[1734261681546,2.02,218.3,218.2,2.8967]
[1734261681738,67.55096428,218.34,218.2,2.8967]
[1734261681937,2.02,218.33,218.2,2.8967]
[1734261685345,2.02,218.33,218.21,5.16157913]
[1734261685544,2.02,218.33,218.22,7.8102776]
[1734261685744,2.02,218.33,218.2,2.8967]
[1734261685745,2.02,218.33,218.23,5.16151219]
[1734261685945,2.02,218.33,218.2,2.8967]
[1734261686141,2.02,218.33,218.21,11.25071441]
[1734261686348,2.02,218.33,218.2,2.8967]
[1734261686648,2.02,218.33,218.21,7.81251747]
[1734261686847,2.02,218.33,218.22,5.16300331]
[1734261687043,2.02,218.33,218.2,2.8967]
[1734261687350,2.02,218.33,218.21,11.25578553]
[1734261687545,2.02,218.33,218.22,2.64955476]
[1734261687747,2.02,218.33,218.2,2.8967]
[1734261688051,2.02,218.33,218.21,7.81512017]
[1734261688249,2.02,218.33,218.22,2.6512665]
[1734261688449,2.02,218.33,218.2,2.8967]
[1734261688647,2.02,218.33,218.21,7.81781958]
[1734261688946,2.02,218.33,218.22,7.81781958]
[1734261689148,2.02,218.33,218.2,2.8967]
[1734261689354,2.02,218.33,218.21,11.26698811]
[1734261689652,2.02,218.33,218.22,2.65244047]
[1734261689954,2.02,218.33,218.1,201.42102383]
[1734261690154,2.02,218.33,218.15,23.04498213]
[1734261690349,2.02,218.33,218.16,21.02498213]
[1734261690662,2.02,218.33,218.17,21.02498213]
[1734261690852,2.02,218.33,218.18,17.01319114]
[1734261691153,2.02,218.33,218.19,11.26728939]
[1734261691348,2.02,218.33,218.2,7.82135753]
[1734261691545,2.02,218.33,218.18,1.5017]
[1734261691746,2.02,218.33,218.19,11.27124202]
[1734261691948,7.54577239,218.33,218.2,7.82413917]
[1734261692254,7.54577239,218.33,218.21,5.17051004]
[1734261692456,7.54577239,218.33,218.19,5.37718574]
[1734261692668,7.54577239,218.33,218.2,7.82443815]
[1734261692852,7.54577239,218.33,218.19,5.37718574]
[1734261693051,7.54577239,218.33,218.2,7.82436327]
[1734261693254,7.54577239,218.33,218.21,5.17065838]
[1734261693454,7.54577239,218.33,218.19,5.37718574]
[1734261693654,7.54577239,218.33,218.2,7.82429143]
[1734261693849,7.54577239,218.33,218.21,7.82429143]
[1734261694154,2.02,218.33,218.22,15.51646098]
[1734261694357,2.02,218.33,218.23,11.27069646]
[1734261694556,2.02,218.33,218.24,7.82429143]
[1734261694857,2.02,218.33,218.25,3.44637769]
[1734261695051,2.02,218.33,218.26,2.65293615]
[1734261695258,67.55096428,218.34,218.21,2.02]
[1734261695456,67.55096428,218.34,218.22,21.02535908]
[1734261695658,67.55096428,218.34,218.23,21.02535908]
[1734261695855,2.02,218.33,218.24,15.8563356]
[1734261696158,2.02,218.35,218.25,19.07532308]
[1734261696351,2.02,218.35,218.26,14.24550336]
[1734261696656,2.02,218.35,218.27,7.82154336]
[1734261696952,2.02,218.35,218.26,2.978]
[1734261697150,2.02,218.36,218.27,15.50785601]
[1734261697347,2.02,218.36,218.28,11.26487294]
[1734261697546,2.02,218.36,218.29,7.81997486]
[1734261697752,2.02,218.36,218.26,2.978]
[1734261697952,2.02,218.36,218.27,15.50111852]
[1734261698158,2.02,218.36,218.28,11.25975406]
[1734261698459,2.02,218.36,218.29,7.81344624]
[1734261698654,2.02,218.36,218.26,2.978]
[1734261698854,2.02,218.36,218.27,15.49575393]
[1734261699052,2.02,218.36,218.28,11.25586294]
[1734261699257,2.02,218.36,218.29,5.16368188]
[1734261699557,2.02,218.36,218.26,2.978]
[1734261699758,2.02,218.36,218.27,15.49105907]
[1734261699952,2.02,218.36,218.28,11.25252117]
[1734261700154,2.02,218.36,218.29,7.81117784]
[1734261700357,2.02,218.36,218.26,2.978]
[1734261700657,58.032657,218.41,218.27,15.48750361]
[1734261700856,2.02,218.4,218.28,11.2499455]
[1734261701053,58.032657,218.41,218.29,7.8093873]
[1734261701253,2.02,218.4,218.26,2.978]
[1734261701454,2.02,218.4,218.27,3.43985895]
[1734261701759,2.02,218.4,218.28,11.24767495]
[1734261702058,2.02,218.4,218.29,7.80782875]
[1734261702257,2.02,218.39,218.26,2.978]
[1734261702454,2.02,218.39,218.27,15.48178794]
[1734261702650,2.02,218.39,218.28,2.64739491]
[1734261702857,2.02,218.39,218.26,2.978]
[1734261703760,2.02,218.39,218.28,5.4192238]
[1734261713767,2.02,218.39,218.26,2.978]
[1734261716373,2.02,218.39,218.27,5.16046722]
[1734261716568,2.02,218.39,218.26,2.978]
[1734261716770,2.02,218.38,218.27,7.80827275]
[1734261716969,2.02,218.38,218.26,2.978]
[1734261717173,2.02,218.38,218.27,11.24863184]
[1734261717371,2.02,218.38,218.26,2.978]
[1734261717573,2.02,218.38,218.27,11.24974718]
[1734261717771,2.02,218.38,218.28,5.16097109]
[1734261717969,2.02,218.38,218.26,2.978]
[1734261718169,2.02,218.38,218.27,7.80916356]
[1734261718364,2.02,218.38,218.28,7.80916356]
[1734261718563,2.02,218.38,218.26,2.978]
[1734261718771,2.02,218.38,218.27,11.25140773]
[1734261718972,2.02,218.38,218.28,7.81036487]
[1734261719270,2.02,218.38,218.26,2.978]
[1734261719471,2.02,218.38,218.27,11.25353664]
[1734261719674,2.02,218.38,218.28,7.81184508]
[1734261719864,2.02,218.38,218.26,4.998]
[1734261720062,2.02,218.38,218.27,11.25352926]
[1734261720271,2.02,218.38,218.28,7.81183631]
[1734261720463,2.02,218.38,218.26,10.62732253]
[1734261720683,2.02,218.38,218.27,11.25314387]
[1734261720974,2.8664,218.4,218.26,10.62732253]
[1734261720975,2.8664,218.4,218.28,7.81156163]
[1734261721170,2.8664,218.4,218.26,10.62732253]
[1734261721171,2.02,218.39,218.26,10.62732253]
[1734261721471,2.02,218.39,218.27,11.25257037]
[1734261721672,2.02,218.39,218.28,7.81117651]
[1734261721875,2.02,218.39,218.26,10.62732253]
[1734261722172,2.02,218.39,218.27,11.25261721]
[1734261722370,2.02,218.39,218.28,7.81120781]
[1734261722572,2.02,218.39,218.26,10.62732253]
[1734261722774,2.02,218.39,218.27,11.25227733]
[1734261722969,2.02,218.39,218.28,7.81098228]
[1734261723169,2.02,218.39,218.26,10.62732253]
[1734261723474,2.02,218.39,218.27,11.2521341]
[1734261723674,2.02,218.39,218.28,7.81087826]
[1734261723973,2.02,218.39,218.26,10.62732253]
[1734261724170,2.02,218.39,218.27,7.81092196]
[1734261724373,2.02,218.39,218.26,8.60732253]
[1734261724874,2.02,218.39,218.27,5.16228739]
[1734261725074,2.02,218.39,218.28,5.1621739]
[1734261725275,2.02,218.39,218.26,8.60732253]
[1734261725476,2.02,218.39,218.27,7.81128232]
[1734261725686,2.02,218.39,218.26,8.60732253]
[1734261725875,2.02,218.39,218.28,5.16231104]
[1734261726072,2.02,218.39,218.27,5.16231104]
[1734261726273,2.02,218.39,218.28,7.81153149]
[1734261726469,2.02,218.39,218.29,7.81147143]
[1734261726777,2.02,218.39,218.26,8.60732253]
[1734261726975,2.02,218.39,218.27,15.49114738]
[1734261727176,2.02,218.39,218.28,11.25266617]
[1734261727380,2.02,218.39,218.29,7.81124591]
[1734261727676,2.02,218.39,218.3,5.1622984]
[1734261727877,2.02,218.39,218.26,8.60732253]
[1734261728178,2.02,218.39,218.27,15.49314518]
[1734261728378,2.02,218.39,218.28,11.25411346]
[1734261728576,2.02,218.39,218.29,7.81225328]
[1734261728771,2.02,218.39,218.3,5.16296172]
[1734261729071,2.02,218.39,218.21,1.4786]
[1734261729473,2.02,218.39,218.22,7.81616518]
[1734261729771,2.02,218.39,218.21,1.4786]
[1734261735475,15.78,218.39,218.18,1.5048]
[1734261735685,5.3939984,218.3,218.11,2.8755]
[1734261735879,6.4565,218.29,218.12,7.81447317]
[1734261736076,6.4565,218.29,218.11,4.3228]
[1734261739579,27.52,218.27,217.92,6.32028348]
[1734261739774,27.52,218.27,217.97,2.9846]
[1734261739973,27.52,218.27,217.93,19.8245718]
[1734261739974,27.52,218.27,217.98,5.14798235]
[1734261740177,27.52,218.27,217.88,7.95414033]
[1734261740383,0.91633831,218.26,217.89,5.13869923]
[1734261740578,2.02,218.25,217.9,5.13869923]
[1734261740884,5.40333712,218.1,217.88,5.55417913]
[1734261741186,6.4757,218.09,217.89,2.9846]
[1734261742284,6.4757,218.09,217.88,5.55417913]
[1734261742285,13.76,218.08,217.85,1.5242]
[1734261743187,27.52,218.08,217.79,2.9237]
[1734261743388,27.52,218.08,217.8,7.73041802]
[1734261743584,27.52,218.08,217.81,5.10788173]
[1734261743887,27.52,218.08,217.79,4.3769]
[1734261744182,27.52,218.08,217.8,7.73084767]
[1734261744482,4.4557,218.09,217.79,4.3769]
[1734261744483,13.76,218.06,217.79,4.3769]
[1734261744680,13.76,218.06,217.8,7.71765932]
[1734261744877,27.52,218.06,217.82,5.47076655]
[1734261745387,2.02,218.05,217.82,5.47076655]
[1734261746885,2.02,218.04,217.82,5.47076655]
[1734261747087,69.67858292,218.04,217.82,5.47076655]
[1734261749382,2.02,218.04,217.82,5.47076655]
[1734261749782,27.52,218.06,217.82,5.47076655]
[1734261750085,4.4557,218.09,217.82,5.47076655]
[1734261750282,2.02,218.08,217.82,5.47076655]
[1734261751082,4.4557,218.09,217.83,2.60156347]
[1734261751384,4.4557,218.09,217.84,2.60064534]
[1734261751385,2.02,218.08,217.84,2.60064534]
[1734261751591,2.02,218.07,217.85,2.02]
[1734261751992,4.4557,218.09,217.86,2.60061386]
[1734261752192,2.02,218.08,217.85,2.02]
[1734261752393,5.52447803,218.07,217.86,2.60018448]
[1734261752697,5.52447803,218.07,217.85,2.02]
[1734261752992,2.02,218.06,217.86,2.60016865]
[1734261753292,2.02,218.06,217.87,2.59978102]
[1734261753586,2.02,218.06,217.85,2.02]
[1734261753785,2.02,218.06,217.86,11.04052784]
[1734261753989,2.02,218.06,217.87,2.59967603]
[1734261754190,2.02,218.06,217.88,2.59967603]
[1734261754490,2.02,218.06,217.89,6.4127]
[1734261754686,2.02,218.06,217.9,2.02]
[1734261756898,2.02,218.05,217.9,2.02]
[1734261761701,2.02,218.05,217.96,5.61584732]
[1734261763300,5.52447803,218.07,217.96,5.61584732]
[1734261763501,2.02,218.04,217.96,5.61584732]
[1734261766502,4.4557,218.09,217.96,5.61584732]
[1734261766700,2.02,218.08,217.96,5.61584732]
[1734261769410,2.04,218.07,217.96,5.61584732]
[1734261774511,2.04,218.07,217.91,2.04]
[1734261774711,2.04,218.07,217.92,11.14843728]
[1734261774905,2.04,218.07,217.93,7.73859822]
[1734261775110,2.04,218.07,217.94,8.22996355]
[1734261775309,2.04,218.07,217.94,5.60483878]
[1734261776409,2.04,218.07,217.95,2.62929669]
[1734261776606,2.04,218.07,217.94,5.60483878]
[1734261776811,2.04,218.07,217.95,2.62929643]
[1734261777114,2.04,218.07,217.9,85.83302886]
[1734261777307,2.04,218.07,217.91,15.38826583]
[1734261777506,2.04,218.07,217.92,11.17707968]
[1734261777706,2.04,218.07,217.93,7.75847037]
[1734261777907,2.04,218.07,217.9,91.45439621]
[1734261778213,2.04,218.07,217.91,7.75873506]
[1734261778410,2.04,218.07,217.92,2.63199283]
[1734261778716,2.04,218.07,217.9,91.45439621]
[1734261778907,2.04,218.07,217.91,5.13224272]
[1734261779112,2.04,218.07,217.92,2.63481783]
[1734261779311,2.04,218.07,217.9,91.45439621]
[1734261779514,2.04,218.07,217.91,11.20283186]
[1734261779816,2.04,218.07,217.92,7.77633117]
[1734261780007,2.04,218.07,217.9,91.45439621]
[1734261780213,2.04,218.07,217.91,11.20282877]
[1734261780517,2.04,218.07,217.92,11.20282877]
[1734261780815,2.04,218.07,217.93,7.77632893]
[1734261781013,2.04,218.07,217.94,2.637961]
[1734261781215,2.04,218.07,217.9,91.45439621]
[1734261781512,2.04,218.07,217.91,15.45472288]
[1734261781714,2.04,218.07,217.92,11.22531815]
[1734261781910,2.04,218.07,217.93,7.79194486]
[1734261782104,2.04,218.07,217.9,91.45439621]
[1734261782309,2.04,218.07,217.91,15.4658305]
[1734261782613,2.04,218.07,217.9,85.83302886]
[1734261782809,2.04,218.07,217.91,7.79829518]
[1734261783013,2.04,218.07,217.83,2.04]
[1734261783314,2.04,218.06,217.85,5.50913548]
[1734261783510,2.04,218.06,217.86,20.96565807]
[1734261783707,2.04,218.06,217.87,20.96565807]
[1734261783911,2.04,218.06,217.88,20.96565807]
[1734261784107,2.04,218.06,217.89,15.46763993]
[1734261784308,2.04,218.06,217.9,15.4839142]
[1734261784518,5.42482041,218.03,217.91,10.33101676]
[1734261784716,2.04,218.02,217.92,6.09135025]
[1734261784916,2.04,218.02,217.93,6.09135025]
[1734261785112,2.04,218.02,217.94,2.64968829]
[1734261785314,2.04,218.02,217.95,2.64968829]
[1734261785614,2.04,218.02,217.84,4.4541]
[1734261785912,2.8976,218.01,217.85,20.99942124]
[1734261786115,2.8976,218.01,217.86,11.25308002]
[1734261786315,1.43,218.0,217.87,11.25308002]
[1734261786514,1.43,218.0,217.88,7.8114084]
[1734261786716,1.43,218.0,217.89,7.8114084]
[1734261786916,1.43,218.0,217.81,2.9221]
[1734261787112,1.43,218.0,217.82,11.17388746]
[1734261787314,1.43,218.0,217.83,11.17388746]
[1734261787619,1.43,218.0,217.84,11.17388746]
[1734261787816,1.43,218.0,217.85,11.17388746]
[1734261788012,1.43,218.0,217.86,11.17292225]
[1734261788310,1.43,218.0,217.87,7.78457937]
[1734261788620,1.43,218.0,217.88,5.16188412]
[1734261788818,1.43,218.0,217.82,6.9652433]
[1734261789117,1.43,218.0,217.83,11.17028462]
[1734261789321,1.43,218.0,217.84,11.17028462]
[1734261789517,1.43,218.0,217.85,7.78207363]
[1734261789719,1.43,218.0,217.86,5.16025024]
[1734261790022,1.43,218.0,217.82,6.9652433]
[1734261790316,1.43,218.0,217.83,11.16662869]
[1734261790522,1.43,218.0,217.84,7.77847911]
[1734261790819,1.43,218.0,217.85,7.7784663]
[1734261791017,1.43,218.0,217.86,5.16010687]
[1734261791220,1.43,218.0,217.82,6.9652433]
[1734261791422,1.43,218.0,217.83,11.16605192]
[1734261791721,1.43,218.0,217.82,6.9652433]
[1734261791722,1.43,218.0,217.84,7.77808102]
[1734261791922,1.43,218.0,217.85,7.77808102]
[1734261792114,1.43,218.0,217.82,6.9652433]
[1734261792115,1.43,218.0,217.86,5.15988039]
[1734261792316,1.43,218.0,217.82,6.9652433]
[1734261792620,1.43,218.0,217.83,11.16581212]
[1734261792821,1.43,218.0,217.84,7.77791533]
[1734261793119,1.43,218.0,217.85,5.15977241]
[1734261793317,1.43,218.0,217.82,6.9652433]
[1734261793517,1.43,218.0,217.83,7.77335175]
[1734261793721,1.43,218.0,217.84,5.15967932]
[1734261794023,1.43,218.0,217.82,6.9652433]
[1734261794230,1.43,218.0,217.83,5.15894773]
[1734261794415,1.43,218.0,217.84,5.15894773]
[1734261794722,1.43,218.0,217.82,6.9652433]
[1734261794923,69.67993258,218.07,217.83,16.55972309]
[1734261795120,69.67993258,218.07,217.84,16.55972309]
[1734261795324,69.67993258,218.07,217.85,13.19262585]
[1734261795515,69.67993258,218.07,217.86,11.15262585]
[1734261795720,69.67993258,218.07,217.87,11.15262585]
[1734261795924,69.67993258,218.07,217.88,11.15262585]
[1734261796120,5.38302816,218.05,217.89,13.19262585]
[1734261796329,5.38302816,218.05,217.9,12.92159008]
[1734261796523,5.38302816,218.05,217.91,6.72099631]
[1734261796715,5.38302816,218.05,217.91,1.5614]
[1734261797219,2.04,218.04,217.91,1.5614]
[1734261797521,2.04,218.04,217.92,5.15841341]
[1734261797827,67.63993258,218.07,217.91,1.5614]
[1734261798029,2.04,218.06,217.92,7.7708731]
[1734261798326,2.04,218.06,217.93,5.15829318]
[1734261798523,2.04,218.06,217.91,1.5614]
[1734261798728,2.04,218.06,217.92,7.77082189]
[1734261798926,2.14,218.05,217.93,5.15821423]
[1734261799123,2.14,218.05,217.91,1.5614]
[1734261799428,2.14,218.05,217.92,11.14953942]
[1734261799627,2.14,218.05,217.93,11.14953942]
[1734261799924,2.14,218.05,217.94,7.77072164]
[1734261800127,2.14,218.05,217.95,9.91018556]
[1734261800426,2.14,218.05,217.96,7.76950231]
[1734261800617,2.14,218.05,217.97,5.15747507]
[1734261800820,2.14,218.05,217.95,2.14]
[1734261801028,2.14,218.05,217.96,7.76945127]
[1734261801223,5.49485563,218.1,217.97,5.15747558]
[1734261801527,2.14,218.09,217.95,2.14]
[1734261801826,2.14,218.09,217.96,7.7689973]
[1734261802026,2.14,218.09,217.97,5.15714911]
[1734261802218,2.14,218.09,217.95,2.14]
[1734261802422,2.14,218.09,217.96,7.76841655]
[1734261802626,2.14,218.09,217.97,5.15681026]
[1734261802821,2.14,218.09,217.95,2.14]
[1734261803022,2.14,218.08,217.96,7.76830194]
[1734261803330,2.14,218.08,217.97,2.61152318]
[1734261803527,2.14,218.08,217.98,7.76759683]
[1734261803728,2.14,218.08,217.99,2.962]
[1734261811536,1.4557,218.11,217.99,2.962]
[1734261811736,2.14,218.1,217.99,2.962]
[1734261812335,2.14,218.1,217.94,5.41496452]
[1734261812838,2.14,218.1,217.92,2.876]
[1734261822943,2.14,218.09,217.92,2.876]
[1734261823339,5.53003316,218.01,217.92,2.876]
[1734261823642,2.14,218.0,217.92,2.876]
[1734261827440,1.4557,218.11,217.92,2.876]
[1734261827441,2.14,217.99,217.92,2.876]
[1734261827639,1.4557,218.11,217.92,2.876]
[1734261827846,2.14,218.1,217.92,2.876]
[1734261828939,2.1,218.09,217.93,5.15694196]
[1734261829142,5.58877763,218.07,217.92,2.876]
[1734261829344,5.58877763,218.07,217.93,5.15660415]
[1734261829544,5.58877763,218.07,217.94,5.15660415]
[1734261829744,5.58877763,218.07,217.92,4.976]
[1734261830046,5.58877763,218.07,217.93,7.76813713]
[1734261830243,5.58877763,218.07,217.94,5.1565077]
[1734261830545,5.58877763,218.07,217.92,4.976]
[1734261832438,5.58877763,218.07,217.92,2.876]
[1734261837852,5.58877763,218.07,217.93,7.78097936]
[1734261838050,5.58877763,218.07,217.94,7.78099686]
[1734261838250,2.1,218.09,217.95,5.16501906]
[1734261838550,2.1,218.09,217.96,5.16501906]
[1734261838746,2.1,218.09,217.92,2.876]
[1734261838947,2.1,218.09,217.93,11.16822676]
[1734261839249,2.1,218.09,217.94,11.16961731]
[1734261839440,2.1,218.09,217.95,7.78353467]
[1734261839640,2.1,218.09,217.92,2.876]
[1734261839641,2.1,218.09,217.96,5.16672924]
[1734261839848,2.1,218.09,217.92,2.876]
[1734261840054,2.1,218.09,217.93,7.78671973]
[1734261840349,2.1,218.09,217.94,11.17268338]
[1734261840557,2.1,218.09,217.92,2.876]
[1734261840743,2.1,218.09,217.95,5.16865508]
[1734261840949,2.1,218.09,217.92,2.876]
[1734261841143,2.1,218.09,217.93,7.78677552]
[1734261841343,2.1,218.09,217.94,7.78677552]
[1734261841545,2.1,218.09,217.92,2.876]
[1734261841745,5.40834253,218.05,217.93,16.59909088]
[1734261841953,2.1,218.04,217.94,7.78693046]
[1734261842154,2.1,218.04,217.95,5.16893785]
[1734261842344,2.1,218.04,217.93,6.94207544]
[1734261842551,2.1,218.04,217.94,7.7867159]
[1734261842851,2.1,218.04,217.95,7.7867159]
[1734261843051,2.1,218.04,217.96,5.16881556]
[1734261843352,2.1,218.04,217.93,6.94207544]
[1734261843650,2.1,218.04,217.94,11.17244387]
[1734261843951,2.1,218.04,217.95,7.78647571]
[1734261844153,2.1,218.04,217.96,5.16868133]
[1734261844348,2.1,218.04,217.93,6.94207544]
[1734261844546,2.1,218.04,217.94,11.17257666]
[1734261844753,2.1,218.04,217.95,7.78656123]
[1734261845053,2.1,218.04,217.96,5.1687479]
[1734261845260,2.1,218.04,217.93,6.94207544]
[1734261845553,2.1,218.04,217.94,8.55532832]
[1734261845748,2.1,218.04,217.95,5.16908982]
[1734261845953,2.1,218.04,217.93,6.94207544]
[1734261846149,2.1,218.04,217.94,5.16915595]
[1734261846348,2.1,218.04,217.93,6.94207544]
[1734261846554,2.1,218.04,217.94,5.16951365]
[1734261846749,2.1,218.04,217.93,6.94207544]
[1734261846954,2.1,218.04,217.94,5.16956129]
[1734261847158,2.1,218.04,217.93,6.94207544]
[1734261847349,2.1,218.04,217.94,5.17007884]